bitfinex/quotes_ETHUSD_20240907
["timestamp","ask_amount","ask_price","bid_price","bid_amount"]
[1725732846705,0.53493852,2285.4,2285.0,4.37622]
[1725732846706,0.53493852,2285.4,2285.1,4.37608]
[1725732847144,3.53493852,2285.4,2285.1,4.37608]
[1725732848557,4.37626,2285.1,2284.6,4.37697]
[1725732848708,5.77243852,2285.0,2284.6,4.37697]
[1725732848913,6.7703094,2284.9,2284.6,4.37697]
[1725732849854,0.45857413,2284.8,2284.6,4.37697]
[1725732850410,0.45857413,2284.8,2284.5,4.37715]
[1725732850948,0.45857413,2284.8,2284.5,8.75439]
[1725732851174,0.45857413,2284.8,2284.5,4.37715]
[1725732851312,0.45857413,2284.8,2284.6,4.3771]
[1725732851713,0.45857413,2284.8,2284.7,4.37694]
[1725732851922,0.45857413,2284.8,2284.7,8.75388]
[1725732852122,0.45857413,2284.8,2284.7,13.13082]
[1725732852546,0.45857413,2284.8,2284.7,18.30272]
[1725732852730,0.45857413,2284.8,2284.7,25.086928]
[1725732853368,7.43,2285.5,2285.4,4.3756]
[1725732853533,2.34646504,2285.8,2285.5,4.37539]
[1725732853720,0.53493852,2285.7,2285.5,4.37539]
[1725732854162,0.99349597,2285.7,2285.5,4.37539]
[1725732854736,0.45855745,2285.7,2285.6,4.37521]
[1725732854970,3.45855745,2285.7,2285.6,4.37521]
[1725732855280,0.45855745,2285.7,2285.6,4.37521]
[1725732856358,0.99349597,2285.7,2285.5,5.250489]
[1725732856563,0.99349597,2285.7,2285.5,4.37539]
[1725732856940,0.53493852,2285.6,2285.3,4.37563]
[1725732859783,0.53493852,2285.6,2285.3,8.75131]
[1725732860456,0.53493852,2285.6,2285.5,4.37541]
[1725732860695,0.45855745,2285.7,2285.2,9.54784]
[1725732860897,0.99349597,2285.7,2285.5,4.37522]
[1725732861507,0.99349597,2285.7,2285.6,4.37521]
[1725732862987,0.99349597,2285.7,2285.4,4.37546]
[1725732863169,0.99349597,2285.7,2285.4,8.75095]
[1725732863696,0.99349597,2285.7,2285.4,4.37546]
[1725732864905,0.99349597,2285.7,2285.4,8.75097]
[1725732865499,0.99349597,2285.7,2285.0,4.37635]
[1725732865500,0.53493852,2285.6,2285.0,4.37627]
[1725732865668,3.53493852,2285.6,2285.2,4.37597]
[1725732866673,7.91017852,2285.6,2285.2,4.37597]
[1725732867094,5.34646504,2285.6,2285.2,8.75185]
[1725732867429,3.53493852,2285.6,2285.2,4.37588]
[1725732867717,5.91728675,2285.6,2285.2,8.75175]
[1725732868011,7.72881327,2285.6,2285.2,4.37587]
[1725732868517,5.91728675,2285.6,2285.2,8.75177]
[1725732868685,7.72881327,2285.6,2285.2,8.75177]
[1725732869012,5.91728675,2285.6,2285.2,4.37587]
[1725732869181,5.91728675,2285.6,2285.2,8.7517]
[1725732869382,5.91728675,2285.6,2285.2,4.37583]
[1725732869577,5.91728675,2285.6,2285.2,8.75172]
[1725732869804,7.72881327,2285.6,2285.2,8.75172]
[1725732869991,5.91728675,2285.6,2285.2,8.75172]
[1725732870197,5.91728675,2285.6,2283.8,4.83604064]
[1725732870198,5.1697,2285.1,2284.7,4.37682]
[1725732870398,0.57199607,2285.0,2284.8,4.37661]
[1725732870604,3.57199607,2285.0,2284.8,4.37661]
[1725732870810,4.03062189,2285.0,2284.8,4.37661]
[1725732871024,4.03062189,2285.0,2284.7,4.37677]
[1725732871227,4.03062189,2285.0,2284.7,8.75358]
[1725732871412,4.03062189,2285.0,2284.9,8.7531]
[1725732871413,0.45862582,2285.0,2284.9,8.7531]
[1725732871614,0.45862582,2285.0,2284.9,13.12965]
[1725732871848,0.45862582,2285.0,2284.9,18.19715]
[1725732873754,0.45862582,2285.0,2284.9,8.7531]
[1725732875313,0.45862582,2285.0,2284.9,10.2226958]
[1725732879464,0.45862582,2285.0,2284.9,4.37655]
[1725732879622,0.45862582,2285.0,2284.8,4.37665]
[1725732879943,5.43742582,2285.0,2284.6,4.37702]
[1725732880150,11.62909576,2285.0,2284.4,8.75474]
[1725732880334,4.37684,2284.8,2284.2,4.37771]
[1725732880540,3.0,2284.7,2284.2,4.37771]
[1725732880735,3.0,2284.7,2284.3,4.37761]
[1725732881058,3.0,2284.7,2284.4,4.37749]
[1725732881220,1.20069207,2284.7,2284.4,4.37749]
[1725732881426,4.20069207,2284.7,2284.3,4.37767]
[1725732881625,4.20069207,2284.7,2284.4,4.3775]
[1725732882535,3.0,2284.7,2284.5,4.37726]
[1725732882739,3.0,2284.8,2284.6,4.37701]
[1725732883037,4.81527994,2284.9,2284.4,4.3775]
[1725732883225,9.19185994,2284.9,2284.4,4.3775]
[1725732883421,2.26707634,2284.8,2284.5,4.3773]
[1725732883645,5.26707634,2284.8,2284.5,4.3773]
[1725732885237,3.0,2284.8,2284.6,4.37709]
[1725732885440,3.0,2284.9,2284.5,4.3773]
[1725732885671,4.81527994,2284.9,2284.5,4.3773]
[1725732885838,7.14289255,2284.9,2284.5,8.75452]
[1725732886247,7.14289255,2284.9,2284.5,4.37722]
[1725732886575,5.32761261,2284.9,2284.5,8.75444]
[1725732887101,5.32761261,2284.9,2284.5,4.37722]
[1725732887382,5.32761261,2284.9,2284.5,8.75445]
[1725732888042,7.14289255,2284.9,2284.5,4.37722]
[1725732888349,1.67667058,2284.8,2284.5,4.37722]
[1725732889176,0.45858191,2284.7,2284.5,4.37722]
[1725732889773,0.45858191,2284.7,2284.3,8.75519]
[1725732889936,3.45858191,2284.7,2284.3,4.37758]
[1725732890142,5.55607252,2284.7,2284.3,4.37758]
[1725732890689,4.9788,2284.6,2284.1,4.37795]
[1725732890854,4.9788,2284.6,2281.1,2.15558575]
[1725732890855,6.37798,2284.2,2283.7,4.37871]
[1725732891183,6.37798,2284.2,2283.2,4.37971]
[1725732891184,7.3782,2284.1,2283.6,4.37904]
[1725732891340,8.39302894,2284.1,2283.6,4.37904]
[1725732892194,4.01482894,2284.1,2283.7,4.37883]
[1725732892849,4.01482894,2284.1,2283.6,4.37903]
[1725732893049,8.39296894,2284.1,2283.6,4.37903]
[1725732893455,9.35727,2283.9,2283.4,4.37942]
[1725732893772,3.0,2283.8,2283.4,4.37942]
[1725732894081,3.0,2283.8,2283.4,4.58889087]
[1725732896758,3.0,2283.8,2283.5,4.37922]
[1725732897244,3.0,2283.8,2283.5,4.58869087]
[1725732898586,3.0,2283.9,2283.7,4.37885]
[1725732898780,3.0,2284.1,2283.8,4.37861]
[1725732899290,3.0,2284.1,2284.0,4.37828]
[1725732899650,3.0,2284.2,2284.0,4.37828]
[1725732900887,5.52297804,2284.4,2284.1,4.37791]
[1725732901073,5.3552,2284.4,2284.1,4.5706995]
[1725732901587,5.3552,2284.4,2284.1,8.9486795]
[1725732901755,5.3552,2284.4,2284.2,4.37783]
[1725732902156,5.3552,2284.6,2284.3,4.37766]
[1725732902556,0.45858191,2284.7,2284.3,0.4763239]
[1725732902867,0.45858191,2284.7,2284.6,4.37713]
[1725732903088,0.45858191,2284.7,2284.6,8.9470495]
[1725732904893,0.45858191,2284.7,2284.6,13.3241795]
[1725732906356,0.45858191,2284.7,2284.6,8.9470495]
[1725732906797,0.45858191,2284.7,2284.6,4.5699195]
[1725732906991,0.45858191,2284.7,2284.6,10.39621035]
[1725732907497,0.45858191,2284.7,2284.6,1.64195035]
[1725732907669,0.45858191,2284.7,2284.6,0.1927895]
[1725732907875,0.45858191,2284.7,2284.6,4.5699195]
[1725732910692,7.81378191,2284.7,2284.6,0.1927895]
[1725732910891,15.64912686,2284.7,2284.6,0.1927895]
[1725732911710,20.02606686,2284.7,2284.6,0.1927895]
[1725732911875,24.62868242,2284.7,2284.6,0.1927895]
[1725732912077,22.35499753,2284.7,2284.6,0.1927895]
[1725732912886,11.60111753,2284.7,2284.6,0.1927895]
[1725732913095,13.19072191,2284.7,2284.6,0.1927895]
[1725732919274,15.00600185,2284.7,2284.6,0.1927895]
[1725732919914,2.0,2284.3,2284.2,0.16524814]
[1725732920213,2.0,2284.3,2284.2,0.8262407]
[1725732920411,6.19600318,2284.3,2284.2,0.8262407]
[1725732920575,6.65449911,2284.3,2284.2,0.8262407]
[1725732921205,6.65449911,2284.3,2284.2,0.16524814]
[1725732922475,3.45849593,2284.3,2284.2,4.54314814]
[1725732922703,0.45849593,2284.3,2284.2,4.54314814]
[1725732924645,0.45849593,2284.3,2284.2,14.26934814]
[1725732924805,0.45849593,2284.3,2284.2,18.64724814]
[1725732925001,0.45849593,2284.3,2284.2,20.54502258]
[1725732925738,0.45849593,2284.3,2284.2,16.16712258]
[1725732927354,0.45849593,2284.3,2284.2,20.54502258]
[1725732927705,0.20059196,2284.3,2284.2,24.92292258]
[1725732927912,0.20059196,2284.3,2284.2,25.47292258]
[1725732928135,7.43,2284.9,2284.7,4.37684]
[1725732928355,1.81208237,2285.1,2284.7,4.54208814]
[1725732928519,1.81208237,2285.2,2284.7,10.37764658]
[1725732928706,1.81208237,2285.2,2284.9,4.37653]
[1725732929354,1.81208237,2285.2,2284.9,4.54177814]
[1725732929509,4.81208237,2285.2,2284.9,4.54177814]
[1725732929709,3.0,2285.2,2284.9,4.54177814]
[1725732929967,1.81208237,2285.7,2285.2,5.3483]
[1725732930253,0.45840495,2285.7,2285.4,4.37547]
[1725732930623,1.81208237,2285.9,2285.5,4.37538]
[1725732930840,0.45840495,2285.9,2285.6,4.37521]
[1725732931419,0.45840495,2285.9,2285.6,4.54045814]
[1725732932566,0.45840495,2285.9,2285.7,4.375]
[1725732932848,0.45840495,2285.9,2285.6,4.54045814]
[1725732934965,0.45840495,2285.9,2285.7,4.37495]
[1725732935114,3.0,2286.0,2285.6,4.54045814]
[1725732935312,3.0,2286.0,2285.6,8.91556814]
[1725732935729,3.0,2286.0,2285.6,8.91546814]
[1725732936315,3.0,2286.0,2285.7,4.37498]
[1725732936945,0.45840495,2285.9,2285.6,4.54035814]
[1725732937517,8.1453294,2285.7,2285.6,0.16524814]
[1725732937760,11.1453294,2285.7,2285.6,0.16524814]
[1725732938754,3.0,2285.7,2285.6,0.16524814]
[1725732940321,3.16031044,2285.9,2285.6,0.16524814]
[1725732940322,3.0,2285.8,2285.6,0.16524814]
[1725732940552,5.0,2285.9,2285.6,0.16524814]
[1725732940726,6.457286,2285.9,2285.6,0.16524814]
[1725732940927,3.0,2285.9,2285.7,4.37491]
[1725732941128,3.0,2286.1,2285.7,4.37491]
[1725732941338,3.45840495,2286.1,2285.7,4.37491]
[1725732941638,0.45840495,2286.0,2285.7,4.54015814]
[1725732942241,2.33852639,2286.0,2285.7,4.54015814]
[1725732942775,2.33852639,2286.0,2285.7,8.91508814]
[1725732943072,0.45840495,2286.0,2285.7,4.54015814]
[1725732945541,0.45846312,2285.9,2285.7,4.54015814]
[1725732946488,0.45846312,2285.9,2285.7,0.16524814]
[1725732946706,0.91686807,2285.9,2285.7,0.16524814]
[1725732946865,5.12301482,2285.9,2285.7,0.16524814]
[1725732947497,3.45846312,2285.9,2285.7,4.54025814]
[1725732949562,3.45846312,2285.9,2285.7,4.54017814]
[1725732949893,0.45846312,2285.9,2285.7,4.54017814]
[1725732950494,0.45846312,2285.9,2285.8,4.37483]
[1725732951593,0.45846312,2285.9,2285.8,4.54007814]
[1725732952751,0.45846312,2285.9,2285.8,0.16524814]
[1725732952990,3.45846312,2285.9,2285.8,0.16524814]
[1725732953200,0.45846312,2285.9,2285.8,0.16524814]
[1725732954102,3.45846312,2285.9,2285.8,0.16524814]
[1725732954262,0.45846312,2285.9,2285.8,0.16524814]
[1725732955579,0.45846312,2285.9,2285.8,4.54007814]
[1725732955896,0.45846312,2285.9,2285.8,15.18025358]
[1725732956865,0.45846312,2285.9,2285.8,5.50604814]
[1725732957095,0.45846312,2285.9,2285.8,0.16524814]
[1725732959798,8.1014,2286.0,2285.8,0.16524814]
[1725732959964,0.45840495,2285.9,2285.8,0.16524814]
[1725732960293,4.83304495,2285.9,2285.8,0.16524814]
[1725732960495,16.31560638,2285.9,2285.8,0.16524814]
[1725732960704,4.37483,2285.8,2285.1,4.37612]
[1725732960904,4.37542,2285.5,2285.1,0.99148889]
[1725732961121,2.0,2285.3,2285.1,0.99148889]
[1725732961404,12.5222694,2285.2,2285.1,0.99148889]
[1725732961619,17.87703611,2285.2,2285.1,0.99148889]
[1725732961812,17.87703611,2285.2,2284.0,4.37818]
[1725732961813,2.0,2284.6,2284.0,4.37818]
[1725732961967,8.1477394,2284.5,2284.0,5.13084323]
[1725732962614,3.0,2284.4,2284.0,5.13084323]
[1725732963790,3.0,2284.4,2284.0,8.75636]
[1725732964012,3.0,2284.4,2284.2,4.37777]
[1725732964170,5.1014,2284.6,2284.2,4.37777]
[1725732964171,3.0,2284.5,2284.2,4.37777]
[1725732964508,3.0,2284.5,2284.3,4.3777]
[1725732964683,3.0,2284.5,2284.3,5.13036323]
[1725732964912,3.0,2284.7,2284.3,5.13036323]
[1725732965109,5.10792143,2284.7,2284.3,5.13036323]
[1725732965266,8.87823083,2284.7,2284.3,0.75266323]
[1725732966213,3.0,2284.7,2284.4,4.37738]
[1725732966416,3.0,2284.7,2284.5,4.37717]
[1725732966705,3.0,2284.7,2284.6,8.75426]
[1725732967110,5.1014,2284.8,2284.7,4.37694]
[1725732967610,5.1014,2284.8,2284.7,9.70455332]
[1725732967795,5.1014,2284.8,2284.7,10.45721655]
[1725732967982,5.1014,2284.8,2284.7,14.83415655]
[1725732968601,5.1014,2284.8,2284.7,19.21109655]
[1725732968772,5.1014,2284.8,2284.7,14.83415655]
[1725732969688,2.5941825,2284.8,2284.7,19.21109655]
[1725732969907,3.05264976,2284.8,2284.7,19.76109655]
[1725732970574,9.76e-06,2284.8,2284.7,19.76109655]
[1725732976699,9.76e-06,2284.8,2284.7,15.38415655]
[1725732978521,9.76e-06,2284.8,2284.7,14.83415655]
[1725732979128,9.76e-06,2284.8,2284.7,19.76109655]
[1725732982387,9.76e-06,2284.8,2284.7,24.13803655]
[1725732983714,9.76e-06,2284.8,2284.7,19.76109655]
[1725732984991,9.76e-06,2284.8,2284.7,15.38415655]
[1725732985698,9.76e-06,2284.8,2284.7,14.83415655]
[1725732989403,9.76e-06,2284.8,2284.7,20.35455655]
[1725732989617,9.76e-06,2284.8,2284.7,29.10843655]
[1725732989836,7.43,2285.5,2285.4,8.7512]
[1725732990008,3.8066,2285.6,2285.5,8.75082]
[1725732990225,3.8066,2285.9,2285.8,4.37483]
[1725732990901,3.8066,2285.9,2285.8,5.12749323]
[1725732991837,6.8066,2285.9,2285.8,5.12749323]
[1725732995834,7.94566495,2285.9,2285.8,0.75266323]
[1725732996438,7.94566495,2285.9,2285.8,5.12749323]
[1725732996651,6.8066,2285.9,2285.8,5.12749323]
[1725732996942,4.2857,2286.1,2286.0,4.37445]
[1725732997152,4.2857,2286.1,2285.8,5.21498815]
[1725732997153,4.2857,2286.3,2286.2,4.37395]
[1725732997446,4.2857,2286.3,2286.2,8.74802]
[1725732997602,2.0,2286.7,2286.4,4.37366]
[1725732997938,4.2857,2286.6,2286.4,5.00955363]
[1725732998248,4.2857,2286.6,2286.5,4.37349]
[1725732998822,4.2857,2286.9,2286.7,4.37303]
[1725732999155,4.74410495,2286.9,2286.7,0.63589363]
[1725732999358,0.45840495,2286.8,2286.7,0.63589363]
[1725732999561,1.50936899,2286.8,2286.7,0.63589363]
[1725733000067,1.96769758,2286.8,2286.7,0.63589363]
[1725733000548,4.50929263,2286.8,2286.7,0.63589363]
[1725733000749,8.79499263,2286.8,2286.7,0.63589363]
[1725733000933,21.30636812,2286.8,2286.7,0.63589363]
[1725733001147,21.76477307,2286.8,2286.7,0.09334689]
[1725733002028,23.57685544,2286.8,2286.7,0.09334689]
[1725733002365,27.94977544,2286.8,2286.7,0.09334689]
[1725733002542,27.10827536,2286.8,2286.7,0.09334689]
[1725733003125,31.75075447,2286.8,2286.7,0.09334689]
[1725733003325,27.10827536,2286.8,2286.7,0.09334689]
[1725733004534,26.68769307,2286.8,2286.7,0.09334689]
[1725733004734,28.95286223,2286.8,2286.7,0.09334689]
[1725733005158,24.02994223,2286.8,2286.7,0.09334689]
[1725733005865,28.82344452,2286.8,2286.7,0.09334689]
[1725733006073,26.55827536,2286.8,2286.7,0.09334689]
[1725733006505,8.74814,2286.2,2286.1,0.1167696]
[1725733006635,19.79937549,2286.2,2286.1,0.1167696]
[1725733006837,20.25778044,2286.2,2286.1,0.1167696]
[1725733007033,19.79937549,2286.2,2286.1,0.1167696]
[1725733007570,19.79937549,2286.2,2285.0,5.1554]
[1725733007571,4.2857,2285.8,2285.1,4.37607]
[1725733007885,4.2857,2285.6,2285.2,4.37593]
[1725733008045,3.0,2285.5,2285.3,4.37575]
[1725733009275,3.0,2285.5,2285.2,4.37588]
[1725733009479,3.0,2285.5,2285.2,8.75177]
[1725733009985,3.0,2285.5,2285.3,4.37573]
[1725733010352,3.0,2285.5,2285.4,8.7512]
[1725733010549,3.0,2285.8,2285.5,4.3753]
[1725733010768,4.07664624,2285.8,2285.5,4.3753]
[1725733010963,4.07664624,2285.8,2285.4,4.3756]
[1725733012241,2.0,2285.5,2284.8,4.3766]
[1725733012582,2.0,2285.5,2284.7,6.10607332]
[1725733012583,4.2857,2285.4,2285.1,4.37613]
[1725733012746,3.0,2285.3,2285.2,4.37587]
[1725733013077,3.0,2285.3,2285.1,4.37613]
[1725733013243,3.0,2285.3,2285.1,8.7522]
[1725733013440,3.0,2285.3,2285.2,4.37598]
[1725733015286,3.45845105,2285.3,2285.2,4.37598]
[1725733016242,3.45845105,2285.3,2285.1,8.75214]
[1725733016845,3.45845105,2285.3,2285.2,4.37598]
[1725733017145,3.45845105,2285.3,2285.1,8.75214]
[1725733017745,0.45845105,2285.3,2285.2,4.37598]
[1725733017979,0.45845105,2285.3,2285.2,8.75196]
[1725733018185,0.45845105,2285.3,2285.2,14.31226]
[1725733018479,0.45845105,2285.3,2285.2,15.743486]
[1725733021853,0.45845105,2285.3,2285.2,20.119466]
[1725733022885,7.43,2285.9,2285.8,8.74966]
[1725733023092,7.0118338,2286.5,2286.1,4.37426]
[1725733023093,1.81199226,2286.4,2286.1,4.37426]
[1725733023255,6.09769226,2286.5,2286.2,4.37405]
[1725733023451,1.81199226,2286.5,2286.2,4.37405]
[1725733023780,1.81199226,2286.6,2286.3,4.37383]
[1725733024183,1.81199226,2286.6,2286.4,4.37368]
[1725733024398,1.81199226,2286.7,2286.3,4.37387]
[1725733024682,0.45840495,2286.7,2286.3,4.37387]
[1725733027607,5.27039721,2286.8,2286.3,4.37387]
[1725733028560,3.45840495,2286.8,2286.3,4.37387]
[1725733028770,5.27039721,2286.8,2286.3,4.37387]
[1725733029283,3.45840495,2286.8,2286.3,4.37387]
[1725733029486,3.45840495,2286.8,2286.1,5.5603]
[1725733029487,3.76553549,2286.5,2286.1,5.5603]
[1725733029689,3.0,2286.4,2286.1,5.5603]
[1725733030559,3.0,2286.5,2286.1,9.93455]
[1725733030761,3.0,2286.6,2286.3,4.37378]
[1725733030962,3.0,2286.7,2286.3,4.37378]
[1725733031362,7.22394044,2286.7,2286.2,4.37397]
[1725733031578,8.57434019,2286.7,2286.2,4.37397]
[1725733031765,14.75945245,2286.7,2286.2,4.37397]
[1725733031980,12.94746019,2286.7,2286.2,4.37397]
[1725733032487,12.94746019,2286.7,2286.1,5.5603]
[1725733032488,4.3735,2286.5,2286.1,5.5603]
[1725733032673,3.0,2286.4,2286.1,5.5603]
[1725733033200,3.0,2286.5,2286.1,5.5603]
[1725733033368,5.11327625,2286.5,2286.1,5.5603]
[1725733033564,9.48678625,2286.5,2286.1,5.5603]
[1725733033966,8.13952549,2286.3,2286.1,5.5603]
[1725733034170,9.37407,2286.2,2286.1,5.5603]
[1725733034366,13.74814,2286.2,2286.1,5.5603]
[1725733034569,14.28874719,2286.2,2286.1,5.5603]
[1725733034773,16.10073945,2286.2,2286.1,5.5603]
[1725733035883,14.28874719,2286.2,2286.1,5.5603]
[1725733036086,16.10593539,2286.2,2286.1,5.5603]
[1725733036406,16.10592131,2286.2,2286.1,5.5603]
[1725733036609,11.73185131,2286.2,2286.1,5.5603]
[1725733037920,11.73203773,2286.2,2286.1,5.5603]
[1725733038077,11.73207675,2286.2,2286.1,5.5603]
[1725733038269,14.28874719,2286.2,2286.1,5.5603]
[1725733038511,16.10615041,2286.2,2286.1,5.5603]
[1725733038777,16.28031404,2286.2,2286.1,5.5603]
[1725733039715,17.19276732,2286.2,2286.1,5.5603]
[1725733039917,17.65117227,2286.2,2286.1,5.5603]
[1725733041176,22.02524227,2286.2,2286.1,3.73646457]
[1725733041384,20.30377152,2286.2,2286.1,3.57496457]
[1725733042314,23.02948089,2286.2,2286.1,3.57496457]
[1725733042525,23.02948089,2286.2,2286.1,3.44096957]
[1725733042814,23.02948089,2286.2,2286.1,0.89276957]
[1725733043018,23.02948089,2286.2,2286.1,0.61720253]
[1725733044623,4.37524,2285.6,2285.1,4.37606]
[1725733044776,3.0,2285.5,2285.1,4.37606]
[1725733045799,3.0,2285.6,2285.5,4.37541]
[1725733046108,3.0,2285.9,2285.5,4.37541]
[1725733046308,7.43,2286.0,2285.7,4.37502]
[1725733046489,1.81700211,2286.1,2285.7,8.75004]
[1725733046829,1.81700211,2286.1,2285.5,0.96258806]
[1725733046830,2.27538786,2286.2,2286.0,4.37432]
[1725733046999,0.45838575,2286.2,2286.1,4.37426]
[1725733047324,0.45838575,2286.2,2286.1,5.249118]
[1725733047476,0.45838575,2286.2,2286.1,9.623378]
[1725733048440,21.72700211,2286.8,2286.4,4.3736]
[1725733048717,2.73085562,2286.9,2286.4,4.3736]
[1725733048718,0.45839821,2286.6,2286.4,8.74718]
[1725733049190,0.45839821,2286.6,2286.4,8.74713]
[1725733049393,0.45839821,2286.6,2286.5,4.37349]
[1725733049927,0.45839821,2286.6,2286.4,8.74712]
[1725733050310,0.45839821,2286.6,2286.5,4.37349]
[1725733051611,8.64776706,2287.1,2286.5,4.37349]
[1725733051808,3.0,2287.0,2286.5,4.46095089]
[1725733052735,3.45840495,2287.0,2286.5,4.46095089]
[1725733054038,7.83097495,2287.0,2286.5,4.46095089]
[1725733054835,7.83097495,2287.0,2286.4,4.37355]
[1725733054836,4.37275,2286.9,2286.4,4.37355]
[1725733055036,3.0,2286.8,2286.4,4.37355]
[1725733055843,3.0,2286.8,2286.5,4.46095094]
[1725733056042,3.0,2286.9,2286.5,4.46095094]
[1725733056757,7.37275,2286.9,2286.4,4.37355]
[1725733056936,8.5923633,2286.9,2286.4,4.37355]
[1725733057363,4.2196133,2286.9,2286.5,0.08746095]
[1725733058579,3.0,2286.9,2286.5,4.46085095]
[1725733059790,3.0,2286.9,2286.1,5.249098]
[1725733059791,3.0,2286.9,2286.7,4.37299]
[1725733059958,3.0,2287.0,2286.7,4.37299]
[1725733060350,5.0,2287.1,2286.7,4.37299]
[1725733061380,3.0,2287.1,2286.7,4.37299]
[1725733062663,3.0,2287.1,2286.8,4.37273]
[1725733062873,3.45837628,2287.2,2286.9,4.37273]
[1725733063074,3.91678123,2287.2,2286.9,4.37273]
[1725733063850,0.45840495,2287.1,2286.9,4.37273]
[1725733064662,0.45837628,2287.2,2286.8,0.08744642]
[1725733064881,7.43,2287.5,2287.2,4.37215]
[1725733065065,7.43,2287.5,2287.0,4.37236]
[1725733065767,7.43,2287.5,2287.1,0.08743872]
[1725733065962,7.43,2287.5,2287.0,4.37236]
[1725733066565,12.26002495,2287.5,2287.0,4.37236]
[1725733066770,0.45840495,2287.4,2287.0,4.37236]
[1725733067079,0.45840495,2287.4,2287.0,8.74478]
[1725733067280,0.45840495,2287.4,2287.0,4.37236]
[1725733067498,3.45840495,2287.4,2287.0,4.37236]
[1725733067994,3.45840495,2287.4,2287.0,8.74479]
[1725733068194,0.45840495,2287.4,2287.0,8.74479]
[1725733068699,0.45840495,2287.4,2287.0,4.37236]
[1725733069000,0.45840495,2287.4,2287.0,8.7448]
[1725733069194,0.45840495,2287.4,2287.1,4.37233]
[1725733069356,5.2541,2287.4,2287.1,4.37233]
[1725733069558,3.0,2287.3,2287.1,4.37233]
[1725733070357,3.0,2287.3,2287.0,4.37236]
[1725733070558,3.0,2287.3,2287.0,8.74479]
[1725733070791,3.0,2287.3,2287.0,4.37236]
[1725733071260,5.71250495,2287.2,2286.9,4.37271]
[1725733071592,4.262573,2287.3,2286.9,4.37262]
[1725733071593,3.0,2287.1,2286.9,4.37262]
[1725733071798,3.0,2287.3,2286.9,4.37262]
[1725733072679,3.0,2287.3,2286.9,8.74526]
[1725733072882,5.2541,2287.2,2286.9,4.37262]
[1725733073084,3.0,2287.1,2286.9,4.37262]
[1725733074501,3.0,2287.1,2287.0,4.37254]
[1725733074708,3.0,2287.3,2287.0,4.37254]
[1725733075895,3.0,2287.3,2286.9,4.37262]
[1725733076063,5.2216,2287.2,2286.9,4.37262]
[1725733076266,3.0,2287.1,2286.9,4.37262]
[1725733076501,3.0,2287.1,2286.9,8.74523]
[1725733076705,3.0,2287.1,2286.9,4.37261]
[1725733077069,3.0,2287.1,2286.9,8.74525]
[1725733078273,3.0,2287.1,2287.0,4.37254]
[1725733078496,9.20145093,2287.4,2287.0,4.37254]
[1725733078882,9.20145093,2287.4,2287.1,4.37233]
[1725733081917,8.2216,2287.4,2287.2,4.37214]
[1725733083429,3.0,2287.4,2287.3,4.37196]
[1725733083602,3.0,2287.5,2287.4,8.74354]
[1725733083921,13.10998447,2287.8,2287.5,4.37153]
[1725733083922,3.0,2287.7,2287.5,4.37153]
[1725733084782,8.01008749,2287.7,2287.3,4.37195]
[1725733085107,5.2216,2287.6,2287.3,4.37195]
[1725733085294,3.0,2287.5,2287.3,4.37195]
[1725733085794,3.0,2287.5,2287.2,4.37204]
[1725733086015,3.76553549,2287.3,2286.9,4.37267]
[1725733086197,5.2216,2287.2,2287.0,4.37252]
[1725733086396,3.0,2287.1,2287.0,4.37252]
[1725733088437,3.0,2287.3,2287.0,4.37252]
[1725733090001,3.0,2287.3,2287.1,4.37233]
[1725733090535,3.0,2287.3,2287.0,4.37242]
[1725733090739,3.0,2287.3,2287.0,8.74487]
[1725733091130,3.0,2287.3,2287.1,4.37234]
[1725733091439,3.0,2287.3,2287.0,4.37242]
[1725733091644,3.0,2287.3,2287.1,4.37234]
[1725733091799,3.0,2287.3,2286.7,5.3347]
[1725733092002,3.0,2287.3,2286.9,4.37256]
[1725733092215,3.0,2287.3,2286.9,8.7452]
[1725733093144,7.37207,2287.3,2286.9,4.37256]
[1725733093310,1.81700211,2287.2,2286.9,4.37256]
[1725733093512,5.27195908,2287.3,2287.0,4.37238]
[1725733093513,3.0,2287.3,2287.0,4.37238]
[1725733093722,4.81700211,2287.4,2287.0,4.37238]
[1725733094238,4.81700211,2287.4,2287.2,4.37212]
[1725733094539,3.0,2287.4,2287.2,8.7441]
[1725733094738,1.81700211,2287.5,2287.3,4.37196]
[1725733094739,4.81700211,2287.5,2287.3,4.37196]
[1725733096050,10.39440211,2287.5,2287.2,4.37206]
[1725733096247,1.81700211,2287.4,2287.2,4.37206]
[1725733096551,1.81700211,2287.3,2287.0,4.37249]
[1725733096750,3.0,2287.3,2287.1,4.37233]
[1725733097123,4.81700211,2287.4,2287.1,4.37233]
[1725733098453,1.81700211,2287.3,2286.9,4.3726]
[1725733098957,4.81700211,2287.3,2287.0,4.3725]
[1725733099458,3.0,2287.3,2287.2,4.37215]
[1725733099788,1.81700211,2287.4,2287.2,4.37215]
[1725733099964,0.45827989,2287.3,2287.2,4.37215]
[1725733100846,0.45827989,2287.3,2287.2,8.7443]
[1725733103449,2.275282,2287.3,2287.2,8.7443]
[1725733103658,0.45827989,2287.3,2287.2,8.7443]
[1725733104366,2.275282,2287.3,2287.2,8.7443]
[1725733104675,2.275282,2287.3,2287.2,10.14374]
[1725733104676,3.45827989,2287.3,2287.2,10.14374]
[1725733104873,0.45827989,2287.3,2287.2,10.14374]
[1725733108843,0.45827989,2287.3,2287.2,15.39384]
[1725733110064,0.45827989,2287.3,2287.2,4.37215]
[1725733110266,2.275282,2287.3,2287.2,4.37215]
[1725733110481,2.275282,2287.3,2287.2,14.08183711]
[1725733110482,3.45827989,2287.3,2287.2,14.08183711]
[1725733110977,0.45827989,2287.3,2287.2,14.08183711]
[1725733111201,3.45827989,2287.3,2287.2,14.08183711]
[1725733111401,0.45827989,2287.3,2287.2,14.08183711]
[1725733111610,0.45827989,2287.3,2287.2,15.33242003]
[1725733111803,0.45827989,2287.3,2287.2,15.24498292]
[1725733112008,0.45827989,2287.3,2287.2,13.9944]
[1725733113168,0.45827989,2287.3,2287.2,18.36655]
[1725733115322,0.45827989,2287.3,2287.2,23.2887]